[Event "Titled Tuesday Blitz August 08 Late 2023"]
[White "Tejedor Fuente, Enrique"]
[Black "Lacasa Diaz, Jose Antonio"]
[WhiteFideId "2299100"]
[BlackFideId "2203375"]
[WhiteElo "2745"]
[BlackElo "2401"]
[Result "1-0"]
[Round "2"]
[TimeControl "180+1"]
[Date "2023.08.08"]
[WhiteClock "0:00:38"]
[BlackClock "0:00:00"]
[Board "111"]

1. Nc3 {[%clk 0:02:58]}  c5 {[%clk 0:02:57]} 2. Nf3 {[%clk 0:02:55]}  Nc6 {[%clk 0:02:50]} 3. e3 {[%clk 0:02:45]}  Nf6 {[%clk 0:02:36]} 4. Bb5 {[%clk 0:02:33]}  g6 {[%clk 0:02:35]} 5. O-O {[%clk 0:02:30]}  Bg7 {[%clk 0:02:33]} 6. d3 {[%clk 0:02:28]}  O-O {[%clk 0:02:32]} 7. Bxc6 {[%clk 0:02:26]}  bxc6 {[%clk 0:02:28]} 8. h3 {[%clk 0:02:24]}  d6 {[%clk 0:02:24]} 9. Rb1 {[%clk 0:02:23]}  e5 {[%clk 0:02:20]} 10. b4 {[%clk 0:02:20]}  cxb4 {[%clk 0:02:19]} 11. Rxb4 {[%clk 0:02:21]}  c5 {[%clk 0:02:17]} 12. Rb1 {[%clk 0:02:19]}  h6 {[%clk 0:02:11]} 13. Nd2 {[%clk 0:02:13]}  Be6 {[%clk 0:02:09]} 14. e4 {[%clk 0:02:11]}  Qa5 {[%clk 0:02:03]} 15. Nb3 {[%clk 0:02:06]}  Qa6 {[%clk 0:01:58]} 16. f4 {[%clk 0:01:52]}  exf4 {[%clk 0:01:50]} 17. Bxf4 {[%clk 0:01:53]}  Nh5 {[%clk 0:01:48]} 18. Bd2 {[%clk 0:01:52]}  c4 {[%clk 0:01:45]} 19. Nc1 {[%clk 0:01:29]}  cxd3 {[%clk 0:01:44]} 20. cxd3 {[%clk 0:01:29]}  Rac8 {[%clk 0:01:43]} 21. Nb5 {[%clk 0:01:26]}  d5 {[%clk 0:01:11]} 22. g4 {[%clk 0:01:23]}  Nf6 {[%clk 0:00:58]} 23. e5 {[%clk 0:01:22]}  Nxg4 {[%clk 0:00:49]} 24. hxg4 {[%clk 0:01:21]}  Bxe5 {[%clk 0:00:48]} 25. Bxh6 {[%clk 0:01:19]}  Rfe8 {[%clk 0:00:40]} 26. Ne2 {[%clk 0:01:17]}  Bxg4 {[%clk 0:00:29]} 27. Rf2 {[%clk 0:01:03]}  Rb8 {[%clk 0:00:19]} 28. a4 {[%clk 0:01:01]}  Qe6 {[%clk 0:00:13]} 29. Qf1 {[%clk 0:00:53]}  a6 {[%clk 0:00:12]} 30. Nbd4 {[%clk 0:00:49]}  Qd7 {[%clk 0:00:08]} 31. Rxb8 {[%clk 0:00:47]}  Rxb8 {[%clk 0:00:07]} 32. Nf3 {[%clk 0:00:47]}  Bc7 {[%clk 0:00:05]} 33. Ned4 {[%clk 0:00:44]}  Qxa4 {[%clk 0:00:05]} 34. Be3 {[%clk 0:00:42]}  Re8 {[%clk 0:00:04]} 35. Qc1 {[%clk 0:00:41]}  Qd7 {[%clk 0:00:04]} 36. Bf4 {[%clk 0:00:39]}  Bxf4 {[%clk 0:00:03]} 37. Qxf4 {[%clk 0:00:39]}  Bxf3 {[%clk 0:00:04]} 38. Nxf3 {[%clk 0:00:39]}  a5 {[%clk 0:00:04]} 39. Rh2 {[%clk 0:00:38]}  a4 {[%clk 0:00:03]} 40. Qf6 {[%clk 0:00:38]}  Qg4+ {[%clk 0:00:00]} 41. Kf2 {[%clk 0:00:38]} 1-0


[Site "https://www.chess.com"]

[Event "Titled Tuesday Blitz August 08 Late 2023"]
[White "Mazurkiewicz, Michal"]
[Black "Mekhitarian, Krikor Sevag"]
[WhiteFideId "1124943"]
[BlackFideId "2107660"]
[WhiteElo "2400"]
[BlackElo "2725"]
[Result "0-1"]
[Round "2"]
[TimeControl "180+1"]
[Date "2023.08.08"]
[WhiteClock "0:00:05"]
[BlackClock "0:00:06"]
[Board "113"]

1. e4 {[%clk 0:03:00]}  e6 {[%clk 0:02:59]} 2. d3 {[%clk 0:02:59]}  d5 {[%clk 0:03:00]} 3. Nd2 {[%clk 0:03:00]}  Nc6 {[%clk 0:02:59]} 4. Ngf3 {[%clk 0:03:00]}  e5 {[%clk 0:02:58]} 5. g3 {[%clk 0:02:54]}  Nf6 {[%clk 0:02:58]} 6. Bg2 {[%clk 0:02:54]}  dxe4 {[%clk 0:02:59]} 7. dxe4 {[%clk 0:02:54]}  Bc5 {[%clk 0:02:59]} 8. O-O {[%clk 0:02:55]}  a5 {[%clk 0:02:59]} 9. c3 {[%clk 0:02:53]}  b6 {[%clk 0:02:59]} 10. Qc2 {[%clk 0:02:49]}  Ba6 {[%clk 0:02:58]} 11. Qa4 {[%clk 0:02:29]}  Qd7 {[%clk 0:01:50]} 12. Rd1 {[%clk 0:02:25]}  O-O {[%clk 0:01:33]} 13. Nc4 {[%clk 0:02:12]}  Qe6 {[%clk 0:01:32]} 14. Ne3 {[%clk 0:02:04]}  Rad8 {[%clk 0:01:22]} 15. Ng5 {[%clk 0:02:04]}  Rxd1+ {[%clk 0:01:16]} 16. Qxd1 {[%clk 0:02:05]}  Qc8 {[%clk 0:01:13]} 17. Nd5 {[%clk 0:01:55]}  Ng4 {[%clk 0:01:01]} 18. Nh3 {[%clk 0:01:00]}  Kh8 {[%clk 0:00:57]} 19. Bf3 {[%clk 0:00:44]}  Nf6 {[%clk 0:00:49]} 20. Bg2 {[%clk 0:00:31]}  Nxd5 {[%clk 0:00:42]} 21. exd5 {[%clk 0:00:31]}  Ne7 {[%clk 0:00:42]} 22. Ng5 {[%clk 0:00:29]}  Qd7 {[%clk 0:00:38]} 23. Qh5 {[%clk 0:00:29]}  h6 {[%clk 0:00:37]} 24. Nxf7+ {[%clk 0:00:29]}  Kg8 {[%clk 0:00:31]} 25. Nxe5 {[%clk 0:00:28]}  Rxf2 {[%clk 0:00:20]} 26. Kh1 {[%clk 0:00:13]}  Qd6 {[%clk 0:00:08]} 27. Bf4 {[%clk 0:00:13]}  Qf6 {[%clk 0:00:07]} 28. Qe8+ {[%clk 0:00:12]}  Qf8 {[%clk 0:00:06]} 29. Qxf8+ {[%clk 0:00:10]}  Kxf8 {[%clk 0:00:07]} 30. Nd7+ {[%clk 0:00:10]}  Kg8 {[%clk 0:00:06]} 31. Nxc5 {[%clk 0:00:10]}  bxc5 {[%clk 0:00:07]} 32. Bxc7 {[%clk 0:00:10]}  Rd2 {[%clk 0:00:04]} 33. d6 {[%clk 0:00:10]}  Nf5 {[%clk 0:00:05]} 34. Bxa5 {[%clk 0:00:02]}  Nxd6 {[%clk 0:00:04]} 35. c4 {[%clk 0:00:03]}  Rxb2 {[%clk 0:00:04]} 36. Bd5+ {[%clk 0:00:04]}  Kh7 {[%clk 0:00:03]} 37. Bc3 {[%clk 0:00:04]}  Rc2 {[%clk 0:00:03]} 38. Be5 {[%clk 0:00:04]}  Bxc4 {[%clk 0:00:03]} 39. Bxd6 {[%clk 0:00:04]}  Bxd5+ {[%clk 0:00:04]} 40. Kg1 {[%clk 0:00:05]}  Rg2+ {[%clk 0:00:04]} 41. Kf1 {[%clk 0:00:05]}  Rxh2 {[%clk 0:00:05]} 42. Bxc5 {[%clk 0:00:06]}  Rc2 {[%clk 0:00:02]} 43. Bf2 {[%clk 0:00:05]}  Bf3 {[%clk 0:00:02]} 44. a4 {[%clk 0:00:05]}  Be2+ {[%clk 0:00:02]} 45. Kg1 {[%clk 0:00:05]}  Ba6 {[%clk 0:00:03]} 46. a5 {[%clk 0:00:05]}  Rc4 {[%clk 0:00:03]} 47. Rb1 {[%clk 0:00:04]}  Ra4 {[%clk 0:00:03]} 48. Bb6 {[%clk 0:00:04]}  g5 {[%clk 0:00:03]} 49. Re1 {[%clk 0:00:04]}  Kg6 {[%clk 0:00:04]} 50. Re6+ {[%clk 0:00:05]}  Kh5 {[%clk 0:00:04]} 51. Be3 {[%clk 0:00:04]}  Rxa5 {[%clk 0:00:03]} 52. Bd4 {[%clk 0:00:04]}  Ra4 {[%clk 0:00:03]} 53. Bg7 {[%clk 0:00:04]}  Kg4 {[%clk 0:00:03]} 54. Bxh6 {[%clk 0:00:04]}  Bd3 {[%clk 0:00:02]} 55. Re3 {[%clk 0:00:03]}  Be4 {[%clk 0:00:02]} 56. Kf2 {[%clk 0:00:03]}  Ra2+ {[%clk 0:00:02]} 57. Re2 {[%clk 0:00:03]}  Ra4 {[%clk 0:00:03]} 58. Rd2 {[%clk 0:00:04]}  Bf5 {[%clk 0:00:03]} 59. Bg7 {[%clk 0:00:04]}  Ra3 {[%clk 0:00:03]} 60. Be5 {[%clk 0:00:03]}  Rf3+ {[%clk 0:00:03]} 61. Ke2 {[%clk 0:00:04]}  Be4 {[%clk 0:00:03]} 62. Rd4 {[%clk 0:00:04]}  Kf5 {[%clk 0:00:04]} 63. Bb8 {[%clk 0:00:03]}  Rb3 {[%clk 0:00:04]} 64. Kd2 {[%clk 0:00:04]}  Rxb8 {[%clk 0:00:04]} 65. g4+ {[%clk 0:00:04]}  Kf4 {[%clk 0:00:04]} 66. Kc3 {[%clk 0:00:04]}  Rc8+ {[%clk 0:00:04]} 67. Kb4 {[%clk 0:00:04]}  Re8 {[%clk 0:00:05]} 68. Kc5 {[%clk 0:00:05]}  Kxg4 {[%clk 0:00:05]} 69. Kd6 {[%clk 0:00:05]}  Kf4 {[%clk 0:00:06]} 70. Kd7 {[%clk 0:00:06]}  Rh8 {[%clk 0:00:06]} 71. Rd1 {[%clk 0:00:06]}  g4 {[%clk 0:00:06]} 72. Rf1+ {[%clk 0:00:07]}  Bf3 {[%clk 0:00:07]} 73. Kd6 {[%clk 0:00:05]}  Kg3 {[%clk 0:00:06]} 0-1


[Site "https://www.chess.com"]

[Event "Titled Tuesday Blitz August 08 Late 2023"]
[White "Zenin, Dmitry"]
[Black "Jimenez Martinez, Jose Vicente"]
[WhiteFideId "4127897"]
[BlackFideId "2264021"]
[WhiteElo "2390"]
[BlackElo "2700"]
[Result "0-1"]
[Round "2"]
[TimeControl "180+1"]
[Date "2023.08.08"]
[WhiteClock "0:00:00"]
[BlackClock "0:00:15"]
[Board "115"]

1. d4 {[%clk 0:03:00]}  d6 {[%clk 0:03:00]} 2. c4 {[%clk 0:03:00]}  g6 {[%clk 0:03:00]} 3. e4 {[%clk 0:02:59]}  Bg7 {[%clk 0:03:01]} 4. Nc3 {[%clk 0:02:59]}  Nf6 {[%clk 0:03:00]} 5. Nf3 {[%clk 0:02:59]}  O-O {[%clk 0:03:00]} 6. Be2 {[%clk 0:02:59]}  Bg4 {[%clk 0:03:00]} 7. Be3 {[%clk 0:02:58]}  Nfd7 {[%clk 0:03:01]} 8. Qd2 {[%clk 0:02:58]}  e5 {[%clk 0:02:51]} 9. d5 {[%clk 0:02:54]}  a5 {[%clk 0:02:50]} 10. O-O {[%clk 0:02:50]}  Na6 {[%clk 0:02:48]} 11. Ne1 {[%clk 0:02:43]}  Bxe2 {[%clk 0:02:48]} 12. Qxe2 {[%clk 0:02:42]}  f5 {[%clk 0:02:44]} 13. f3 {[%clk 0:02:42]}  b6 {[%clk 0:02:40]} 14. Nd3 {[%clk 0:02:40]}  Ndc5 {[%clk 0:02:40]} 15. Nxc5 {[%clk 0:02:36]}  Nxc5 {[%clk 0:02:41]} 16. b3 {[%clk 0:02:25]}  Qh4 {[%clk 0:02:39]} 17. g3 {[%clk 0:02:17]}  Qe7 {[%clk 0:02:34]} 18. Rab1 {[%clk 0:02:10]}  f4 {[%clk 0:02:26]} 19. Bxc5 {[%clk 0:02:08]}  bxc5 {[%clk 0:02:25]} 20. g4 {[%clk 0:02:08]}  h5 {[%clk 0:02:25]} 21. gxh5 {[%clk 0:02:07]}  Qg5+ {[%clk 0:02:17]} 22. Kh1 {[%clk 0:02:07]}  Qxh5 {[%clk 0:02:17]} 23. Rg1 {[%clk 0:02:06]}  Kf7 {[%clk 0:02:17]} 24. a4 {[%clk 0:01:57]}  Rh8 {[%clk 0:02:16]} 25. Nb5 {[%clk 0:01:56]}  Rac8 {[%clk 0:02:12]} 26. Rb2 {[%clk 0:01:56]}  Bf6 {[%clk 0:02:12]} 27. Qg2 {[%clk 0:01:55]}  Bh4 {[%clk 0:02:08]} 28. Qg4 {[%clk 0:01:55]}  Qxg4 {[%clk 0:02:07]} 29. Rxg4 {[%clk 0:01:54]}  g5 {[%clk 0:02:07]} 30. Re2 {[%clk 0:01:40]}  Ke7 {[%clk 0:02:05]} 31. Kg1 {[%clk 0:01:39]}  Kd7 {[%clk 0:02:04]} 32. Kf1 {[%clk 0:01:31]}  Rh7 {[%clk 0:02:04]} 33. Reg2 {[%clk 0:01:28]}  Rch8 {[%clk 0:02:03]} 34. Ke2 {[%clk 0:01:27]}  Kc8 {[%clk 0:02:03]} 35. Rg1 {[%clk 0:01:25]}  Kb7 {[%clk 0:02:03]} 36. R4g2 {[%clk 0:01:24]}  Rh6 {[%clk 0:02:03]} 37. Rf1 {[%clk 0:01:20]}  Rg8 {[%clk 0:02:02]} 38. Rfg1 {[%clk 0:01:20]}  Rgh8 {[%clk 0:02:02]} 39. Nc3 {[%clk 0:01:19]}  Kb6 {[%clk 0:02:00]} 40. Kd3 {[%clk 0:01:17]}  Kb7 {[%clk 0:01:58]} 41. Nb5 {[%clk 0:01:14]}  Kb6 {[%clk 0:01:57]} 42. Nc3 {[%clk 0:01:14]}  R8h7 {[%clk 0:01:57]} 43. Nb5 {[%clk 0:01:14]}  Rh5 {[%clk 0:01:57]} 44. Rd1 {[%clk 0:01:11]}  Rh8 {[%clk 0:01:56]} 45. Ke2 {[%clk 0:01:10]}  R5h7 {[%clk 0:01:56]} 46. Nc3 {[%clk 0:01:08]}  Rg8 {[%clk 0:01:52]} 47. Rdg1 {[%clk 0:01:07]}  Rhg7 {[%clk 0:01:51]} 48. Nb5 {[%clk 0:01:06]}  Rb8 {[%clk 0:01:49]} 49. Rg4 {[%clk 0:01:05]}  Rh7 {[%clk 0:01:49]} 50. R1g2 {[%clk 0:01:03]}  Rbh8 {[%clk 0:01:47]} 51. Rg1 {[%clk 0:01:02]}  Kb7 {[%clk 0:01:46]} 52. Nc3 {[%clk 0:01:01]}  Kc8 {[%clk 0:01:46]} 53. Nb5 {[%clk 0:01:01]}  Kd7 {[%clk 0:01:46]} 54. Nc3 {[%clk 0:01:01]}  Rh6 {[%clk 0:01:46]} 55. Nb5 {[%clk 0:01:01]}  c6 {[%clk 0:01:45]} 56. dxc6+ {[%clk 0:01:00]}  Kxc6 {[%clk 0:01:45]} 57. Rd1 {[%clk 0:01:00]}  Rf6 {[%clk 0:01:45]} 58. Rg2 {[%clk 0:00:56]}  Rhh6 {[%clk 0:01:45]} 59. Kf1 {[%clk 0:00:56]}  Rfg6 {[%clk 0:01:45]} 60. Rg4 {[%clk 0:00:54]}  Rf6 {[%clk 0:01:45]} 61. Nc3 {[%clk 0:00:53]}  Rfg6 {[%clk 0:01:44]} 62. Nd5 {[%clk 0:00:52]}  Rh7 {[%clk 0:01:44]} 63. Rg2 {[%clk 0:00:49]}  Rb7 {[%clk 0:01:43]} 64. Rd3 {[%clk 0:00:47]}  Rh6 {[%clk 0:01:41]} 65. Rgd2 {[%clk 0:00:46]}  Rg6 {[%clk 0:01:40]} 66. Rg2 {[%clk 0:00:46]}  Rbg7 {[%clk 0:01:39]} 67. Rg4 {[%clk 0:00:43]}  Kd7 {[%clk 0:01:30]} 68. Nc3 {[%clk 0:00:43]}  Kc6 {[%clk 0:01:29]} 69. Nb5 {[%clk 0:00:43]}  Rh6 {[%clk 0:01:26]} 70. Rg2 {[%clk 0:00:42]}  Rhg6 {[%clk 0:01:26]} 71. Rgd2 {[%clk 0:00:40]}  Rd7 {[%clk 0:01:22]} 72. Rg2 {[%clk 0:00:38]}  Rh6 {[%clk 0:01:21]} 73. Rd1 {[%clk 0:00:36]}  Rg6 {[%clk 0:01:21]} 74. Rg4 {[%clk 0:00:36]}  Rd8 {[%clk 0:01:19]} 75. Rg2 {[%clk 0:00:35]}  g4 {[%clk 0:01:16]} 76. Rxg4 {[%clk 0:00:33]}  Rxg4 {[%clk 0:01:16]} 77. fxg4 {[%clk 0:00:34]}  Be7 {[%clk 0:01:16]} 78. Kg2 {[%clk 0:00:33]}  Rh8 {[%clk 0:01:15]} 79. Rf1 {[%clk 0:00:31]}  Rh4 {[%clk 0:01:14]} 80. h3 {[%clk 0:00:30]}  Rh6 {[%clk 0:01:13]} 81. Rf3 {[%clk 0:00:30]}  Bh4 {[%clk 0:01:12]} 82. Kf1 {[%clk 0:00:28]}  Bg3 {[%clk 0:01:10]} 83. Kg2 {[%clk 0:00:27]}  Bh4 {[%clk 0:01:10]} 84. Nc3 {[%clk 0:00:26]}  Rh8 {[%clk 0:01:10]} 85. Nd5 {[%clk 0:00:26]}  Rb8 {[%clk 0:01:10]} 86. Rd3 {[%clk 0:00:26]}  Rb7 {[%clk 0:01:08]} 87. Kf3 {[%clk 0:00:25]}  Rh7 {[%clk 0:01:08]} 88. Ke2 {[%clk 0:00:24]}  Bg3 {[%clk 0:01:07]} 89. Rf3 {[%clk 0:00:20]}  Rxh3 {[%clk 0:01:07]} 90. Ne7+ {[%clk 0:00:20]}  Kd7 {[%clk 0:01:07]} 91. Nf5 {[%clk 0:00:20]}  Rh2+ {[%clk 0:01:06]} 92. Kf1 {[%clk 0:00:20]}  Bh4 {[%clk 0:01:03]} 93. Rd3 {[%clk 0:00:18]}  Be7 {[%clk 0:01:03]} 94. g5 {[%clk 0:00:15]}  Rh1+ {[%clk 0:00:57]} 95. Kg2 {[%clk 0:00:15]}  Rh5 {[%clk 0:00:57]} 96. g6 {[%clk 0:00:14]}  Rg5+ {[%clk 0:00:58]} 97. Kf3 {[%clk 0:00:14]}  Rxg6 {[%clk 0:00:58]} 98. Rd1 {[%clk 0:00:13]}  Ke6 {[%clk 0:00:44]} 99. Rh1 {[%clk 0:00:13]}  Bf6 {[%clk 0:00:40]} 100. Rh7 {[%clk 0:00:11]}  Rg1 {[%clk 0:00:39]} 101. Rh6 {[%clk 0:00:10]}  Rb1 {[%clk 0:00:38]} 102. Rh7 {[%clk 0:00:06]}  Rxb3+ {[%clk 0:00:37]} 103. Kg4 {[%clk 0:00:06]}  Rb1 {[%clk 0:00:37]} 104. Ra7 {[%clk 0:00:06]}  Rg1+ {[%clk 0:00:37]} 105. Kf3 {[%clk 0:00:06]}  Rf1+ {[%clk 0:00:37]} 106. Ke2 {[%clk 0:00:05]}  Rc1 {[%clk 0:00:36]} 107. Kd3 {[%clk 0:00:05]}  Rd1+ {[%clk 0:00:28]} 108. Ke2 {[%clk 0:00:04]}  Rc1 {[%clk 0:00:24]} 109. Kd3 {[%clk 0:00:04]}  f3 {[%clk 0:00:25]} 110. Ke3 {[%clk 0:00:04]}  Rc3+ {[%clk 0:00:24]} 111. Kf2 {[%clk 0:00:04]}  Rxc4 {[%clk 0:00:23]} 112. Kxf3 {[%clk 0:00:04]}  Rxa4 {[%clk 0:00:22]} 113. Ra6 {[%clk 0:00:04]}  Be7 {[%clk 0:00:21]} 114. Ra7 {[%clk 0:00:04]}  Ra3+ {[%clk 0:00:20]} 115. Ke2 {[%clk 0:00:03]}  Bg5 {[%clk 0:00:20]} 116. Ra6 {[%clk 0:00:02]}  Ra2+ {[%clk 0:00:19]} 117. Kf3 {[%clk 0:00:01]}  Rd2 {[%clk 0:00:18]} 118. Rxa5 {[%clk 0:00:01]}  Rd3+ {[%clk 0:00:14]} 119. Ke2 {[%clk 0:00:00]}  c4 {[%clk 0:00:15]} 0-1


[Site "https://www.chess.com"]

[Event "Titled Tuesday Blitz August 08 Late 2023"]
[White "Korpics, Zsolt"]
[Black "KarolKacprzak"]
[WhiteFideId "705241"]
[WhiteElo "2382"]
[BlackElo "2685"]
[Result "0-1"]
[Round "2"]
[TimeControl "180+1"]
[Date "2023.08.08"]
[WhiteClock "0:00:16"]
[BlackClock "0:00:53"]
[Board "118"]

1. e4 {[%clk 0:03:00]}  e5 {[%clk 0:03:00]} 2. Nf3 {[%clk 0:03:00]}  Nc6 {[%clk 0:03:00]} 3. Bb5 {[%clk 0:03:01]}  a6 {[%clk 0:03:00]} 4. Ba4 {[%clk 0:03:01]}  Nf6 {[%clk 0:03:01]} 5. O-O {[%clk 0:03:01]}  Be7 {[%clk 0:03:01]} 6. Re1 {[%clk 0:03:01]}  b5 {[%clk 0:03:00]} 7. Bb3 {[%clk 0:03:01]}  d6 {[%clk 0:02:58]} 8. c3 {[%clk 0:03:01]}  O-O {[%clk 0:02:57]} 9. h3 {[%clk 0:03:01]}  Nb8 {[%clk 0:02:52]} 10. d4 {[%clk 0:03:01]}  Nbd7 {[%clk 0:02:52]} 11. Nbd2 {[%clk 0:02:59]}  Bb7 {[%clk 0:02:50]} 12. Bc2 {[%clk 0:02:43]}  Re8 {[%clk 0:02:48]} 13. Nf1 {[%clk 0:02:42]}  Bf8 {[%clk 0:02:48]} 14. Ng3 {[%clk 0:02:42]}  g6 {[%clk 0:02:49]} 15. Nh2 {[%clk 0:02:32]}  c5 {[%clk 0:02:45]} 16. d5 {[%clk 0:02:31]}  c4 {[%clk 0:02:45]} 17. Ng4 {[%clk 0:02:25]}  Nxg4 {[%clk 0:02:40]} 18. hxg4 {[%clk 0:02:21]}  Be7 {[%clk 0:02:38]} 19. Be3 {[%clk 0:02:15]}  Bg5 {[%clk 0:02:33]} 20. Qd2 {[%clk 0:02:14]}  Bxe3 {[%clk 0:02:31]} 21. Qxe3 {[%clk 0:02:14]}  Qh4 {[%clk 0:02:28]} 22. Qf3 {[%clk 0:01:57]}  Nf6 {[%clk 0:02:23]} 23. Bd1 {[%clk 0:01:57]}  Bc8 {[%clk 0:02:22]} 24. Kf1 {[%clk 0:01:17]}  Bxg4 {[%clk 0:01:53]} 25. Qe3 {[%clk 0:01:16]}  Bxd1 {[%clk 0:01:45]} 26. Raxd1 {[%clk 0:01:11]}  Qf4 {[%clk 0:01:42]} 27. Ke2 {[%clk 0:00:58]}  h5 {[%clk 0:01:39]} 28. Nf1 {[%clk 0:00:49]}  Qxe4 {[%clk 0:01:32]} 29. f3 {[%clk 0:00:34]}  Qf4 {[%clk 0:01:23]} 30. g3 {[%clk 0:00:33]}  Qf5 {[%clk 0:01:19]} 31. Nd2 {[%clk 0:00:31]}  e4 {[%clk 0:01:14]} 32. f4 {[%clk 0:00:30]}  Nxd5 {[%clk 0:01:09]} 33. Qd4 {[%clk 0:00:28]}  Nf6 {[%clk 0:01:10]} 34. Nf1 {[%clk 0:00:22]}  Ng4 {[%clk 0:01:07]} 35. Ne3 {[%clk 0:00:21]}  Nxe3 {[%clk 0:01:07]} 36. Qxe3 {[%clk 0:00:22]}  Re6 {[%clk 0:01:07]} 37. Rd4 {[%clk 0:00:21]}  d5 {[%clk 0:01:06]} 38. Red1 {[%clk 0:00:21]}  Rd8 {[%clk 0:01:07]} 39. Kf2 {[%clk 0:00:21]}  Kh7 {[%clk 0:01:06]} 40. Kg2 {[%clk 0:00:21]}  Red6 {[%clk 0:01:04]} 41. Rh1 {[%clk 0:00:21]}  Kg7 {[%clk 0:01:04]} 42. Rh4 {[%clk 0:00:20]}  a5 {[%clk 0:00:58]} 43. Kf2 {[%clk 0:00:21]}  b4 {[%clk 0:00:58]} 44. Kg2 {[%clk 0:00:20]}  bxc3 {[%clk 0:00:58]} 45. Qxc3 {[%clk 0:00:20]}  Qf6 {[%clk 0:00:57]} 46. Qe3 {[%clk 0:00:20]}  Rb8 {[%clk 0:00:55]} 47. Qd2 {[%clk 0:00:18]}  Rdb6 {[%clk 0:00:53]} 48. Rxd5 {[%clk 0:00:16]}  Rxb2 {[%clk 0:00:53]} 0-1


[Site "https://www.chess.com"]

[Event "Titled Tuesday Blitz August 08 Late 2023"]
[White "Piesik, Piotr"]
[Black "kiwibobo"]
[WhiteFideId "1136194"]
[WhiteElo "2652"]
[BlackElo "2380"]
[Result "1-0"]
[Round "2"]
[TimeControl "180+1"]
[Date "2023.08.08"]
[WhiteClock "0:00:21"]
[BlackClock "0:00:22"]
[Board "119"]

1. Nf3 {[%clk 0:02:54]}  Nf6 {[%clk 0:03:00]} 2. g3 {[%clk 0:02:54]}  g6 {[%clk 0:03:00]} 3. Bg2 {[%clk 0:02:52]}  Bg7 {[%clk 0:03:00]} 4. O-O {[%clk 0:02:53]}  O-O {[%clk 0:03:00]} 5. d4 {[%clk 0:02:54]}  d5 {[%clk 0:03:01]} 6. c4 {[%clk 0:02:54]}  Nc6 {[%clk 0:03:01]} 7. Nc3 {[%clk 0:02:53]}  dxc4 {[%clk 0:02:57]} 8. d5 {[%clk 0:02:54]}  Nb4 {[%clk 0:02:58]} 9. Ne1 {[%clk 0:02:50]}  c6 {[%clk 0:02:54]} 10. dxc6 {[%clk 0:02:47]}  Nxc6 {[%clk 0:02:45]} 11. Qa4 {[%clk 0:02:45]}  Bd7 {[%clk 0:02:43]} 12. Qxc4 {[%clk 0:02:45]}  Rc8 {[%clk 0:02:44]} 13. Qh4 {[%clk 0:02:45]}  Qb6 {[%clk 0:02:39]} 14. Nd3 {[%clk 0:02:43]}  Nd4 {[%clk 0:02:31]} 15. Be3 {[%clk 0:02:38]}  Nf5 {[%clk 0:02:26]} 16. Bxb6 {[%clk 0:02:37]}  Nxh4 {[%clk 0:02:27]} 17. Bxa7 {[%clk 0:02:35]}  Nxg2 {[%clk 0:02:27]} 18. Kxg2 {[%clk 0:02:36]}  Bc6+ {[%clk 0:02:22]} 19. Kg1 {[%clk 0:02:35]}  Ne4 {[%clk 0:02:21]} 20. Nxe4 {[%clk 0:02:32]}  Bxe4 {[%clk 0:02:21]} 21. Rfd1 {[%clk 0:01:48]}  Bxd3 {[%clk 0:02:11]} 22. Rxd3 {[%clk 0:01:48]}  Bxb2 {[%clk 0:02:11]} 23. Rb1 {[%clk 0:01:48]}  Rc2 {[%clk 0:02:11]} 24. Kf1 {[%clk 0:01:34]}  Bf6 {[%clk 0:02:10]} 25. a3 {[%clk 0:01:29]}  Rb2 {[%clk 0:01:59]} 26. Rxb2 {[%clk 0:01:28]}  Bxb2 {[%clk 0:01:59]} 27. Rb3 {[%clk 0:01:28]}  Ra8 {[%clk 0:01:57]} 28. Bc5 {[%clk 0:01:27]}  b6 {[%clk 0:01:46]} 29. Bxe7 {[%clk 0:01:24]}  Bd4 {[%clk 0:01:43]} 30. e3 {[%clk 0:01:20]}  Bc5 {[%clk 0:01:43]} 31. Bxc5 {[%clk 0:01:20]}  bxc5 {[%clk 0:01:44]} 32. Ke2 {[%clk 0:01:20]}  Kf8 {[%clk 0:01:43]} 33. Kd3 {[%clk 0:01:20]}  Ra4 {[%clk 0:01:41]} 34. Rc3 {[%clk 0:01:21]}  c4+ {[%clk 0:01:40]} 35. Kd4 {[%clk 0:01:20]}  Ke7 {[%clk 0:01:39]} 36. Kc5 {[%clk 0:01:20]}  Ke6 {[%clk 0:01:14]} 37. Kb5 {[%clk 0:01:18]}  Ra8 {[%clk 0:01:13]} 38. Kxc4 {[%clk 0:01:18]}  Ke5 {[%clk 0:01:13]} 39. f3 {[%clk 0:01:15]}  g5 {[%clk 0:01:08]} 40. g4 {[%clk 0:01:09]}  f5 {[%clk 0:01:04]} 41. h3 {[%clk 0:01:08]}  h5 {[%clk 0:00:57]} 42. Kd3 {[%clk 0:01:05]}  hxg4 {[%clk 0:00:50]} 43. hxg4 {[%clk 0:01:05]}  fxg4 {[%clk 0:00:51]} 44. fxg4 {[%clk 0:01:02]}  Ra4 {[%clk 0:00:52]} 45. Rc5+ {[%clk 0:00:40]}  Kf6 {[%clk 0:00:52]} 46. Rc6+ {[%clk 0:00:39]}  Ke5 {[%clk 0:00:52]} 47. Rc5+ {[%clk 0:00:37]}  Kf6 {[%clk 0:00:51]} 48. Rc4 {[%clk 0:00:37]}  Rxa3+ {[%clk 0:00:51]} 49. Ke4 {[%clk 0:00:37]}  Ra5 {[%clk 0:00:47]} 50. Rc6+ {[%clk 0:00:37]}  Kg7 {[%clk 0:00:47]} 51. Re6 {[%clk 0:00:36]}  Kf7 {[%clk 0:00:34]} 52. Re5 {[%clk 0:00:36]}  Ra4+ {[%clk 0:00:31]} 53. Kf5 {[%clk 0:00:36]}  Ra1 {[%clk 0:00:31]} 54. Kxg5 {[%clk 0:00:36]}  Rg1 {[%clk 0:00:32]} 55. Rf5+ {[%clk 0:00:34]}  Ke7 {[%clk 0:00:32]} 56. Rf3 {[%clk 0:00:33]}  Ke6 {[%clk 0:00:32]} 57. Kh5 {[%clk 0:00:32]}  Rh1+ {[%clk 0:00:33]} 58. Kg6 {[%clk 0:00:32]}  Rg1 {[%clk 0:00:33]} 59. g5 {[%clk 0:00:32]}  Ke7 {[%clk 0:00:33]} 60. Kh6 {[%clk 0:00:32]}  Ra1 {[%clk 0:00:31]} 61. g6 {[%clk 0:00:31]}  Rh1+ {[%clk 0:00:31]} 62. Kg7 {[%clk 0:00:31]}  Rg1 {[%clk 0:00:32]} 63. Kh7 {[%clk 0:00:31]}  Rh1+ {[%clk 0:00:32]} 64. Kg8 {[%clk 0:00:31]}  Rg1 {[%clk 0:00:33]} 65. g7 {[%clk 0:00:32]}  Rg2 {[%clk 0:00:33]} 66. e4 {[%clk 0:00:26]}  Rg4 {[%clk 0:00:33]} 67. e5 {[%clk 0:00:26]}  Rg5 {[%clk 0:00:33]} 68. e6 {[%clk 0:00:26]}  Ra5 {[%clk 0:00:30]} 69. Rh3 {[%clk 0:00:22]}  Kxe6 {[%clk 0:00:26]} 70. Kh7 {[%clk 0:00:21]}  Ra7 {[%clk 0:00:22]} 71. Kh8 {[%clk 0:00:21]} 1-0


[Site "https://www.chess.com"]